bitfinex-derivatives/quotes_ETHF0:USTF0_20240917
["timestamp","ask_amount","ask_price","bid_price","bid_amount"]
[1726600789948,0.42482,2353.3,2353.2,0.9829551]
[1726600790153,2.20982409,2353.3,2353.2,0.42482]
[1726600790353,2.63464409,2353.3,2353.2,0.42482]
[1726600790552,2.20982409,2353.3,2353.2,0.42482]
[1726600791546,1.06591,2353.4,2353.3,0.42482]
[1726600792945,0.6411,2353.4,2353.3,0.42482]
[1726600793165,2.2095492,2353.4,2353.3,0.42482]
[1726600795150,2.6343592,2353.4,2353.3,0.42482]
[1726600795550,2.2095492,2353.4,2353.3,0.42482]
[1726600796750,0.42481,2353.4,2353.3,0.42482]
[1726600797561,3.18549349,2353.5,2353.4,0.42481]
[1726600798843,2.76069349,2353.5,2353.4,0.42481]
[1726600799048,3.37399349,2353.6,2353.5,0.42479]
[1726600799954,3.79876349,2353.6,2353.5,0.42479]
[1726600800355,1.67526,2353.6,2353.1,1.71045]
[1726600800668,3.18749255,2353.5,2353.2,1.62025183]
[1726600800857,2.2101278,2353.4,2353.2,1.06211]
[1726600801356,2.2101278,2353.4,2353.3,1.48689]
[1726600801556,2.2101278,2353.4,2353.3,2.04500762]
[1726600801756,2.2101278,2353.4,2353.3,1.48689]
[1726600801954,2.2101278,2353.4,2353.3,2.04500106]
[1726600802454,2.2101278,2353.4,2353.3,0.98293106]
[1726600802660,2.76270255,2353.5,2353.4,0.42481]
[1726600802851,3.18749255,2353.5,2353.4,0.42481]
[1726600804958,6.39529255,2353.5,2353.4,0.42481]
[1726600805358,3.63259,2353.5,2353.4,0.42481]
[1726600805863,3.2078,2353.5,2353.4,0.42481]
[1726600806053,5.97107203,2353.5,2353.4,0.42481]
[1726600806260,3.2078,2353.5,2353.4,0.42481]
[1726600806760,1.03808,2353.6,2353.5,0.42479]
[1726600807366,0.4248,2353.5,2353.4,0.42479]
[1726600807861,1.03808,2353.6,2353.5,0.42479]
[1726600808259,0.4248,2353.5,2353.4,0.42479]
[1726600809158,0.4248,2353.5,2353.4,0.98291483]
[1726600809463,0.4248,2353.5,2353.4,0.9829224]
[1726600809662,0.4248,2353.5,2353.4,0.98291751]
[1726600810362,0.4248,2353.5,2353.4,0.98292363]
[1726600810560,0.42486,2353.1,2352.8,6.35418848]
[1726600810762,2.76445503,2353.1,2353.0,0.42486]
[1726600810955,2.76445503,2353.1,2353.0,0.98304532]
[1726600811364,3.18931503,2353.1,2353.0,0.98304532]
[1726600811563,4.26025,2353.2,2353.1,0.42486]
[1726600811955,0.42487,2353.1,2353.0,0.42487]
[1726600812765,3.18912283,2353.1,2353.0,0.98306739]
[1726600813162,0.42487,2353.1,2353.0,0.42487]
[1726600813370,7.43839931,2353.1,2353.0,0.42487]
[1726600813660,2.76393931,2353.1,2353.0,0.98308531]
[1726600814259,2.76393931,2353.1,2353.0,0.42487]
[1726600814459,2.76393931,2353.1,2353.0,0.9830824]
[1726600814668,3.18879931,2353.1,2353.0,0.9830824]
[1726600815064,3.18879931,2353.1,2353.0,0.42487]
[1726600815869,3.18879931,2353.1,2353.0,0.98308656]
[1726600815870,2.76393931,2353.1,2353.0,0.98308656]
[1726600816167,3.18879931,2353.1,2353.0,0.98307985]
[1726600816362,3.18879931,2353.1,2353.0,0.42487]
[1726600816562,3.18879931,2353.1,2352.9,0.42488]
[1726600816563,0.42488,2353.0,2352.9,0.42488]
[1726600816766,0.6613,2353.0,2352.9,0.98310114]
[1726600817470,0.6613,2353.0,2352.9,0.42488]
[1726600817668,0.6613,2353.0,2352.9,0.98309915]
[1726600818066,0.6613,2353.0,2352.9,0.98309344]
[1726600818264,0.6613,2353.0,2352.9,0.98309778]
[1726600818459,0.6613,2353.0,2352.9,0.42488]
[1726600818767,0.6613,2353.0,2352.9,0.98309563]
[1726600819269,2.87061063,2353.0,2352.9,0.98309563]
[1726600819671,2.20931063,2353.0,2352.9,0.98309563]
[1726600820365,3.18880931,2353.1,2352.9,0.42488]
[1726600820569,3.18880931,2353.1,2353.0,0.42488]
[1726600821273,0.42488,2353.0,2352.9,0.42488]
[1726600821468,3.18880931,2353.1,2353.0,0.42488]
[1726600821766,3.18880931,2353.1,2352.7,2.98164]
[1726600821767,2.76393931,2353.1,2352.7,2.98164]
[1726600821986,2.63400253,2353.0,2352.9,0.42489]
[1726600822268,2.20910945,2353.0,2352.9,0.42489]
[1726600823177,3.18880931,2353.1,2353.0,0.42488]
[1726600823374,0.42489,2353.0,2352.9,0.42489]
[1726600823564,3.18573836,2353.0,2352.9,0.42489]
[1726600823765,2.76084836,2353.0,2352.9,0.42489]
[1726600824165,3.18571836,2353.1,2353.0,0.42488]
[1726600824371,0.42489,2353.0,2352.9,0.42488]
[1726600824563,3.18566937,2353.0,2352.9,0.42488]
[1726600825473,2.76077937,2353.0,2352.9,0.42488]
[1726600825671,3.18564937,2353.1,2353.0,0.42488]
[1726600825970,0.42489,2353.0,2352.9,0.42488]
[1726600826272,0.42491,2352.9,2352.4,4.179]
[1726600826477,3.69626108,2352.6,2352.5,0.55826251]
[1726600826667,3.2078,2352.7,2352.0,4.179]
[1726600826668,0.42504,2352.1,2352.0,4.179]
[1726600826972,0.42509,2351.9,2351.6,0.42513]
[1726600827169,1.6537703,2351.7,2351.6,0.42513]
[1726600827366,1.65383283,2351.7,2351.6,1.95513]
[1726600827563,1.10254632,2351.7,2351.6,6.20713]
[1726600827766,1.10254632,2351.7,2351.6,0.42513]
[1726600827968,1.65383283,2351.7,2351.6,0.42513]
[1726600828170,1.1015804,2351.7,2351.4,8.40325043]
[1726600828381,1.1015804,2351.7,2351.5,0.42513]
[1726600828674,1.1015804,2351.7,2351.6,0.42513]
[1726600829081,1.1015804,2351.8,2351.6,4.252]
[1726600829265,1.1015804,2351.8,2351.4,0.90425043]
[1726600829470,1.1015804,2351.8,2351.6,0.42513]
[1726600830176,1.1015804,2351.9,2351.6,0.42513]
[1726600830373,1.1015804,2351.9,2351.4,4.22425043]
[1726600830685,1.1015804,2351.9,2351.7,0.42511]
[1726600830876,1.1015804,2351.9,2351.4,4.22425043]
[1726600830877,1.1015804,2351.9,2351.5,0.42514]
[1726600831080,1.1015804,2351.9,2351.6,0.42513]
[1726600831279,1.1015804,2351.9,2351.7,0.42511]
[1726600831474,2.3819804,2352.0,2351.7,0.42511]
[1726600831677,1.1015804,2351.9,2351.6,3.32]
[1726600831974,1.1015804,2351.9,2351.7,0.4251]
[1726600832277,2.3819804,2352.0,2351.7,1.0951]
[1726600832680,2.8070404,2352.0,2351.7,1.0951]
[1726600833077,2.3819804,2352.0,2351.7,0.67]
[1726600833271,1.2804,2352.0,2351.7,1.0951]
[1726600833468,3.2078,2352.1,2351.9,3.32]
[1726600833683,4.3093804,2352.1,2351.9,0.42507]
[1726600834180,3.2078,2352.1,2351.9,0.42507]
[1726600834371,3.2078,2352.1,2351.9,1.06217]
[1726600834576,4.252,2352.0,2351.4,4.179]
[1726600834867,1.09818378,2352.1,2351.7,3.32]
[1726600835071,1.09818378,2352.1,2352.0,0.42506]
[1726600835072,1.09829469,2352.1,2352.0,0.42506]
[1726600835272,1.76669469,2352.2,2352.0,0.42506]
[1726600835473,0.6684,2352.2,2352.1,0.6371]
[1726600835776,1.09829469,2352.6,2352.3,0.425]
[1726600835976,2.37959469,2352.9,2352.5,3.32]
[1726600836284,1.2813,2352.9,2352.7,0.42492]
[1726600836575,4.30609469,2353.2,2353.1,0.42486]
[1726600836779,3.2078,2353.2,2353.1,0.42486]
[1726600836969,3.2078,2353.2,2353.0,3.32]
[1726600836970,3.2078,2353.2,2353.0,3.74487]
[1726600837276,3.2078,2353.2,2352.8,3.32]
[1726600837476,3.2078,2353.2,2352.6,1.2867]
[1726600837477,3.32,2353.1,2352.6,1.2867]
[1726600837684,1.04519,2353.0,2352.6,1.71163]
[1726600837874,3.6327,2352.9,2352.6,1.2867]
[1726600838073,3.2078,2352.9,2352.6,1.2867]
[1726600838268,1.2686,2353.0,2352.7,0.42493]
[1726600838573,1.2686,2353.0,2352.6,1.2867]
[1726600838574,3.2078,2353.2,2353.0,0.42488]
[1726600838775,3.2078,2353.2,2352.8,3.32]
[1726600838776,3.2078,2353.2,2353.1,0.42486]
[1726600839173,3.2078,2353.2,2353.0,3.74487]
[1726600839578,3.2078,2353.2,2353.1,0.42486]
[1726600839773,0.4248,2353.5,2353.0,3.32]
[1726600839774,1.09829469,2353.5,2353.0,3.32]
[1726600839980,1.09829469,2353.5,2353.2,0.42483]
[1726600840584,1.52308469,2353.5,2353.1,1.04955]
[1726600840783,3.63262,2353.4,2353.1,0.6247]
[1726600840975,3.32,2353.3,2352.6,3.9726]
[1726600841173,1.04914,2353.2,2352.6,1.2609]
[1726600841370,3.2078,2353.1,2352.6,1.2609]
[1726600841579,0.42487,2353.1,2352.6,1.2609]
[1726600841776,5.35524469,2353.2,2352.6,4.5809]
[1726600841978,5.35524469,2353.2,2352.8,0.4249]
[1726600842178,4.25695,2353.2,2352.6,4.87098453]
[1726600842578,1.04915,2353.2,2352.9,0.42489]
[1726600842778,4.25695,2353.2,2352.9,0.42489]
[1726600843184,4.25695,2353.2,2352.6,4.87098453]
[1726600843185,4.30609469,2353.2,2352.8,3.32]
[1726600843383,1.09829469,2353.3,2353.0,3.32]
[1726600843688,1.09829469,2353.4,2353.2,0.42484]
[1726600843889,1.52310469,2353.4,2353.2,0.42484]
[1726600844189,1.52310469,2353.4,2353.1,0.42485]
[1726600844780,1.09829469,2353.3,2353.2,0.42484]
[1726600844981,1.52310469,2353.4,2353.2,0.42484]
[1726600845274,1.09829469,2353.4,2353.3,0.42482]
[1726600845481,2.14738469,2353.5,2353.3,0.42482]
[1726600845675,1.09829469,2353.4,2353.3,0.42482]
[1726600845883,5.35518469,2353.5,2353.3,0.42482]
[1726600846188,1.64723194,2353.4,2353.1,0.6415]
[1726600846379,1.64723194,2353.3,2353.2,0.42484]
[1726600846581,1.09891621,2353.3,2353.2,0.42484]
[1726600846787,1.52373621,2353.3,2353.1,0.42485]
[1726600847082,4.30671621,2353.2,2353.1,0.42486]
[1726600847381,1.09891621,2353.2,2353.1,0.42486]
[1726600847783,10.27896194,2353.2,2352.8,0.4249]
[1726600847989,3.63268,2353.0,2352.9,0.42489]
[1726600848180,4.30633678,2353.0,2352.9,0.42489]
[1726600848375,3.2078,2353.0,2352.9,0.42489]
[1726600848690,3.63268,2353.0,2352.9,0.42489]
[1726600848991,4.30633678,2353.0,2352.9,0.42489]
[1726600849285,1.09853678,2353.2,2353.1,0.42486]
[1726600850087,0.42489,2353.0,2352.8,0.4249]
[1726600850289,3.6327,2352.9,2352.8,0.42491]
[1726600850590,2.39836206,2352.9,2352.8,0.42491]
[1726600850980,1.09906206,2352.9,2352.8,0.42491]
[1726600851184,1.52394206,2353.1,2352.6,5.03497]
[1726600851381,1.09906206,2353.0,2352.9,0.42488]
[1726600851878,1.52394206,2353.0,2352.6,3.9726]
[1726600852088,1.09906206,2353.0,2352.9,0.4249]
[1726600852478,5.31182,2353.0,2352.6,1.07754]
[1726600852789,3.2078,2352.7,2352.6,1.07754]
[1726600852992,4.30735991,2352.7,2352.6,1.07754]
[1726600853204,3.2078,2352.7,2352.6,1.07754]
[1726600853990,3.2078,2352.7,2352.6,0.42494]
[1726600854392,3.2078,2352.7,2352.6,0.42495]
[1726600854792,4.30735991,2352.7,2352.6,0.42495]
[1726600854992,3.2078,2352.7,2352.6,0.42495]
[1726600855298,3.63273,2352.7,2352.6,0.42495]
[1726600855485,3.2078,2352.7,2352.6,0.42495]
[1726600855693,4.30735991,2352.7,2352.6,0.42495]
[1726600856193,4.73228991,2352.7,2352.6,0.42495]
[1726600856396,4.73229991,2352.7,2352.6,0.42495]
[1726600856589,4.73228991,2352.7,2352.6,0.42495]
[1726600856885,4.30735991,2352.7,2352.6,0.42495]
[1726600857588,4.73228991,2352.7,2352.6,0.42495]
[1726600857896,4.73229991,2352.7,2352.6,0.42495]
[1726600858097,0.42495,2352.6,2352.5,1.05446]
[1726600858397,0.42495,2352.6,2352.5,0.42496]
[1726600858398,1.09955991,2352.6,2352.5,0.42496]
[1726600858593,5.35199991,2352.7,2352.6,0.42495]
[1726600858895,0.42496,2352.6,2352.5,0.42496]
[1726600859097,5.35247088,2352.7,2352.3,1.72461]
[1726600859291,5.35247088,2352.7,2352.6,0.42495]
[1726600859496,5.90177986,2352.7,2352.6,0.42495]
[1726600859687,4.9275415,2352.7,2352.6,0.42495]
[1726600859893,4.92750215,2352.7,2352.6,0.42495]
[1726600860189,0.42496,2352.6,2352.5,0.42496]
[1726600860390,0.425,2352.4,2352.3,0.425]
[1726600860589,0.42502,2352.3,2352.2,0.42501]
[1726600860787,5.35119777,2352.3,2351.9,4.179]
[1726600860996,5.35119777,2352.3,2351.9,4.60407]
[1726600860997,3.63286,2352.0,2351.9,4.60407]
[1726600861192,3.63286,2352.0,2351.9,0.42507]
[1726600861492,3.8658,2352.0,2351.9,0.42507]
[1726600861697,3.8658,2352.0,2351.9,0.42508]
[1726600861698,5.94020986,2352.0,2351.9,0.42508]
[1726600861889,5.39053324,2352.0,2351.9,0.42508]
[1726600866492,4.29087,2352.0,2351.9,0.42508]
[1726600870696,5.39053324,2352.0,2351.9,0.42508]
[1726600870895,4.29087,2352.0,2351.9,0.42508]
[1726600871905,5.39053324,2352.0,2351.9,0.42508]
[1726600872405,4.29087,2352.0,2351.9,0.42508]
[1726600873198,5.39053324,2352.0,2351.9,0.42508]
[1726600875090,0.4251,2351.9,2351.8,0.42508]
[1726600875398,0.42511,2351.8,2351.7,0.4251]
[1726600876197,1.4879,2351.7,2351.6,8.57161899]
[1726600876397,10.21149324,2351.7,2351.6,0.42513]
[1726600876695,4.30746324,2351.7,2351.6,0.42513]
[1726600876896,3.2078,2351.7,2351.6,6.80281]
[1726600877104,1.2722,2352.0,2351.9,0.42508]
[1726600877300,1.2722,2352.0,2351.7,1.06277]
[1726600877301,1.09966324,2352.1,2352.0,0.42506]
[1726600877507,1.09966324,2352.2,2352.1,0.42504]
[1726600877802,1.09966324,2352.2,2352.0,0.42504]
[1726600878005,1.06261,2352.1,2351.9,0.42507]
[1726600878303,1.06261,2352.1,2351.8,1.07898]
[1726600878304,0.42508,2351.9,2351.8,1.07898]
[1726600878507,4.7313962,2352.0,2351.9,0.42508]
[1726600878901,3.63287,2352.0,2351.9,0.42508]
[1726600879095,3.2078,2352.0,2351.9,0.42508]
[1726600879907,3.63286,2352.0,2351.9,0.42508]
[1726600880112,3.2078,2352.0,2351.9,0.42508]
[1726600880309,3.2078,2352.0,2351.8,0.6539]
[1726600880310,3.63286,2352.0,2351.8,0.6539]
[1726600880507,3.63286,2352.0,2351.9,0.42508]
[1726600881602,0.42508,2351.9,2351.8,0.6539]
[1726600881806,0.42508,2351.9,2351.8,1.07899]
[1726600882304,0.42509,2351.8,2351.7,0.6145]
[1726600883306,4.3063262,2352.0,2351.7,4.8665]
[1726600883505,3.63287,2352.0,2351.9,0.42508]
[1726600884105,3.63287,2352.0,2351.8,0.42508]
[1726600884306,3.2078,2352.0,2351.9,0.42508]
[1726600884611,4.3063262,2352.0,2351.7,1.03961]
[1726600884907,5.3689862,2352.0,2351.7,1.03961]
[1726600885414,0.42509,2351.8,2351.7,1.03961]
[1726600885812,0.42508,2351.9,2351.8,0.42508]
[1726600887213,0.42509,2351.8,2351.7,0.6145]
[1726600887404,1.3133,2351.8,2351.7,1.03961]
[1726600887909,1.0985262,2351.9,2351.8,0.42509]
[1726600888208,0.42509,2351.8,2351.7,0.6145]
[1726600888404,0.42511,2351.7,2351.6,0.42512]
[1726600888600,4.28931,2351.7,2351.6,0.42513]
[1726600889508,3.8642,2351.7,2351.6,0.42513]
[1726600889709,4.28931,2351.7,2351.6,0.42513]
[1726600890905,4.9627262,2351.7,2351.6,0.42513]
[1726600892414,5.3878362,2351.7,2351.6,0.42513]
[1726600892605,1.0985262,2351.7,2351.6,0.42513]
[1726600892811,1.5236362,2351.8,2351.7,0.42511]
[1726600893007,1.52493827,2351.8,2351.7,0.42511]
[1726600893320,2.07443986,2351.8,2351.7,0.42511]
[1726600893508,1.52528472,2351.8,2351.7,0.42511]
[1726600893710,1.52523429,2351.8,2351.7,0.42511]
[1726600893908,2.07443986,2351.8,2351.7,0.42511]
[1726600894309,0.42513,2351.7,2351.6,0.42512]
[1726600894620,5.28226986,2351.7,2351.6,0.42512]
[1726600894808,2.07446986,2351.7,2351.6,0.42512]
[1726600895009,0.42514,2351.6,2351.5,0.42514]
[1726600895206,2.37972478,2351.6,2351.5,0.42514]
[1726600895410,0.42517,2351.4,2351.3,0.42517]
[1726600895709,4.73318152,2351.4,2351.3,0.42517]
[1726600897220,5.28328728,2351.4,2351.3,0.42517]
[1726600899713,5.28328728,2351.4,2351.1,0.6244]
[1726600899925,1.65031728,2351.3,2351.2,0.4252]
[1726600900119,1.65031728,2351.3,2351.1,1.04961]
[1726600900120,2.07550728,2351.3,2351.1,1.04961]
[1726600900318,1.65031728,2351.2,2351.1,1.04961]
[1726600901622,1.65031728,2351.2,2351.1,0.6244]
[1726600901623,2.07551728,2351.2,2351.1,0.6244]
[1726600901822,2.07551728,2351.2,2351.1,1.04962]
[1726600902122,1.0702,2351.2,2351.1,0.6244]
[1726600902321,3.27804091,2351.2,2351.1,0.6244]
[1726600902623,3.27804091,2351.2,2351.0,1.31488997]
[1726600903018,3.27804091,2351.2,2350.9,4.8474]
[1726600903019,8.18106329,2351.1,2350.9,0.6684]
[1726600903222,2.63308091,2351.0,2350.9,0.6684]
[1726600903416,2.20784091,2351.0,2350.7,1.2707]
[1726600903618,1.10246012,2350.8,2350.7,1.69599]
[1726600903925,4.86149018,2350.8,2350.7,1.69599]
[1726600904119,5.28677018,2350.8,2350.7,1.69599]
[1726600904426,3.63308,2350.8,2350.7,1.06219]
[1726600904726,5.28613971,2350.8,2350.7,1.06219]
[1726600904928,5.28613971,2350.8,2350.7,0.6369]
[1726600905128,5.28613971,2350.8,2350.5,0.84634014]
[1726600905129,8.55078,2350.8,2350.5,0.42532]
[1726600905320,2.62990997,2350.7,2350.6,0.42531]
[1726600905515,2.20459997,2350.7,2350.6,0.42531]
[1726600905824,1.6524978,2350.8,2350.5,4.38332]
[1726600906020,5.2855778,2350.8,2350.6,1.08131]
[1726600906328,5.41239997,2350.8,2350.3,4.12863289]
[1726600906526,1.10151575,2350.6,2350.4,0.656]
[1726600906727,1.10151575,2350.6,2350.5,1.48866]
[1726600907028,1.65227363,2350.8,2350.6,1.4886]
[1726600907029,1.10105094,2350.7,2350.6,1.4886]
[1726600907231,1.10105094,2350.8,2350.7,1.48853]
[1726600907528,6.47552997,2351.1,2350.9,1.48841]
[1726600907529,1.10105094,2351.0,2350.9,1.48841]
[1726600907822,1.10105094,2351.3,2351.2,0.4252]
[1726600908023,1.10105094,2351.4,2351.3,0.42519]
[1726600908626,0.42515,2351.5,2351.4,0.42517]
[1726600908833,0.42515,2351.5,2351.3,1.05137]
[1726600909121,3.2078,2351.4,2351.3,1.05139]
[1726600909425,8.17960484,2351.4,2350.9,3.4925299]
[1726600909620,1.65179473,2351.2,2350.9,4.4891]
[1726600909825,1.10117834,2351.2,2351.0,4.3831]
[1726600910025,1.10117834,2351.3,2351.0,3.32]
[1726600910223,1.10117834,2351.3,2351.2,0.4252]
[1726600911426,1.10117834,2351.3,2351.2,7.998]
[1726600911726,1.65179473,2351.4,2351.3,0.42519]
[1726600911727,1.10117834,2351.4,2351.3,0.42519]
[1726600911929,1.10117834,2351.4,2351.3,1.09259]
[1726600912322,1.10117834,2351.5,2351.4,0.42517]
[1726600912523,1.65179473,2351.6,2351.5,0.42515]
[1726600913622,1.10141156,2351.6,2351.5,0.42515]
[1726600915230,1.65179473,2351.6,2351.4,0.6736]
[1726600915431,1.65179473,2351.6,2351.5,0.42515]
[1726600915931,1.65179473,2351.7,2351.6,1.48797]
[1726600916233,1.1015734,2351.8,2351.7,1.4879]
[1726600916418,1.1015734,2351.9,2351.8,0.42509]
[1726600916728,1.65226674,2352.0,2351.9,0.42508]
[1726600917632,1.10116302,2352.2,2351.9,8.61068]
[1726600917832,1.10117831,2352.2,2352.1,0.42504]
[1726600918528,1.10117831,2352.2,2352.1,4.67624]
[1726600918725,1.10117831,2352.3,2352.2,1.48758]
[1726600918921,1.10117831,2352.5,2352.2,4.8644]
[1726600919233,1.10117831,2352.4,2352.3,0.425]
[1726600919635,1.10117831,2352.5,2352.4,0.42499]
[1726600919932,1.10117831,2352.7,2352.6,0.42495]
[1726600920436,1.65226674,2352.8,2352.7,0.42493]
[1726600920437,1.10117831,2352.8,2352.7,0.42493]
[1726600921529,1.10117831,2352.8,2352.6,0.6355]
[1726600921724,6.03439997,2353.0,2352.8,0.42491]
[1726600921927,6.03439997,2353.0,2352.7,0.42492]
[1726600921928,1.65069419,2352.9,2352.7,0.42492]
[1726600922130,1.10006923,2352.8,2352.7,0.42492]
[1726600922631,5.77538923,2352.8,2352.2,0.6132]
[1726600922843,3.2078,2352.5,2352.4,0.42499]
[1726600923336,4.30786923,2352.6,2352.4,0.42499]
[1726600923537,0.6658,2352.5,2352.4,0.42499]
[1726600924940,0.6238,2352.6,2352.5,0.42497]
[1726600926038,0.6238,2352.6,2352.2,4.4501]
[1726600926230,0.6238,2352.6,2352.5,0.42497]
[1726600927728,0.6238,2352.6,2352.2,1.05412]
[1726600927729,0.42499,2352.4,2352.2,1.05412]
[1726600928032,3.63281,2352.3,2352.1,0.42503]
[1726600928249,0.6741,2352.2,2352.1,0.42503]
[1726600930135,0.6741,2352.2,2352.1,0.42504]
[1726600932131,1.72386923,2352.6,2352.1,8.63379]
[1726600932341,1.72386923,2352.6,2352.0,3.2078]
[1726600932342,0.6238,2352.6,2352.5,3.74497]
[1726600932531,0.6164,2352.7,2352.6,0.42495]
[1726600932731,1.259,2352.7,2352.6,0.42495]
[1726600933132,1.68393,2352.7,2352.5,0.42496]
[1726600933431,1.68393,2352.7,2352.3,3.32]
[1726600933636,1.68393,2352.7,2352.5,0.42497]
[1726600933637,3.2078,2352.6,2352.5,0.42497]
[1726600933937,3.2078,2352.6,2352.0,7.3868]
[1726600934243,3.2078,2352.3,2351.9,0.6309]
[1726600934437,1.8478,2352.2,2352.1,0.42504]
[1726600934637,1.8478,2352.2,2351.9,3.9509]
[1726600934838,1.8478,2352.2,2352.1,0.42504]
[1726600935442,1.232,2352.2,2352.1,7.99624]
[1726600935643,0.6164,2352.2,2352.1,3.74504]
[1726600935840,0.6164,2352.2,2352.1,7.99624]
[1726600936936,0.6164,2352.2,2352.1,0.42504]
[1726600937127,0.6164,2352.2,2351.7,7.3868]
[1726600937329,0.6164,2352.2,2351.6,0.42512]
[1726600937330,3.2078,2352.0,2351.6,0.42512]
[1726600937540,3.2078,2352.0,2351.5,1.2787]
[1726600937541,1.74439,2351.9,2351.5,1.2787]
[1726600937737,3.32,2351.8,2351.3,4.179]
[1726600938041,3.32,2351.8,2351.3,7.499]
[1726600938042,0.6656,2351.8,2351.3,7.499]
[1726600938340,0.42511,2351.7,2351.5,0.42514]
[1726600938541,0.6656,2351.8,2351.6,0.42513]
[1726600938731,3.2078,2351.7,2351.6,0.42513]
[1726600938932,4.29851,2351.8,2351.5,0.42514]
[1726600939136,4.29851,2351.8,2351.6,0.42513]
[1726600939331,0.42514,2351.6,2351.3,4.179]
[1726600939539,3.2078,2351.5,2351.3,4.60418]
[1726600939744,3.2078,2351.5,2351.4,0.42517]
[1726600940231,3.2078,2351.5,2351.3,0.42517]
[1726600940436,3.2078,2351.5,2351.2,3.9522]
[1726600940637,3.2078,2351.5,2351.3,0.42518]
[1726600940837,3.2078,2351.5,2351.2,3.9522]
[1726600941046,3.2078,2351.5,2351.3,0.42517]
[1726600942241,3.63296,2351.5,2351.1,1.05671]
[1726600942434,1.9871,2351.4,2351.1,1.05671]
[1726600942641,1.9871,2351.4,2351.2,0.4252]
[1726600942940,1.9871,2351.4,2351.1,0.6315]
[1726600943142,1.9871,2351.4,2351.2,0.4252]
[1726600943342,1.9871,2351.4,2350.9,0.6364]
[1726600943547,3.2078,2351.2,2351.0,0.42523]
[1726600944244,3.2078,2351.2,2350.9,1.06165]
[1726600944545,3.2078,2351.2,2351.0,0.42523]
[1726600948847,4.30786923,2351.5,2351.4,0.42517]
[1726600949051,2.20459997,2351.8,2351.4,3.32]
[1726600949052,3.38338923,2351.7,2351.4,3.32]
[1726600949350,1.8582,2351.7,2351.5,0.42514]
[1726600949539,3.38338923,2351.7,2351.5,0.42514]
[1726600949745,2.28332,2351.7,2351.4,0.42515]
[1726600950348,3.2078,2351.5,2351.4,0.42515]
[1726600950549,3.2078,2351.5,2351.3,3.32]
[1726600950751,3.2078,2351.5,2351.4,0.42517]
[1726600951953,3.2078,2351.5,2351.3,0.42518]
[1726600952154,3.2078,2351.5,2351.4,0.42517]
[1726600953050,3.63296,2351.5,2351.3,0.42518]
[1726600953255,4.30786923,2351.5,2351.0,4.179]
[1726600953445,1.10006923,2351.4,2351.2,0.4252]
[1726600953639,0.42521,2351.2,2351.0,4.60423]
[1726600953851,0.6374,2351.1,2351.0,4.60423]
[1726600955455,0.6374,2351.1,2351.0,4.60424]
[1726600955653,0.42521,2351.2,2351.0,0.42524]
[1726600955952,1.03419,2351.3,2351.1,3.74521]
[1726600956154,1.03419,2351.3,2351.1,0.42521]
[1726600956655,0.609,2351.3,2351.2,0.4252]
[1726600956860,1.03419,2351.3,2351.1,0.42521]
[1726600957158,0.609,2351.3,2351.2,0.4252]
[1726600957355,0.6526,2351.4,2351.3,0.42519]
[1726600957959,1.07777,2351.4,2351.2,1.06199]
[1726600958270,0.6526,2351.4,2351.3,0.42519]
[1726600958562,0.6526,2351.4,2351.1,3.32]
[1726600958858,0.6526,2351.4,2351.3,0.42519]
[1726600959255,1.07777,2351.4,2351.3,0.42519]
[1726600959761,1.07777,2351.4,2351.0,1.6748]
[1726600960057,0.6526,2351.4,2351.3,0.42519]
[1726600962557,3.2078,2351.5,2351.4,0.42517]
[1726600962857,3.2078,2351.5,2351.4,1.03057]
[1726600963057,3.2078,2351.5,2351.4,7.77065297]
[1726600963461,0.42512,2351.7,2351.4,6.70772297]
[1726600963660,0.42512,2351.7,2351.6,0.42513]
[1726600966159,0.42514,2351.6,2351.5,0.42513]
[1726600966965,1.02004,2351.6,2351.5,0.42513]
[1726600967165,0.5949,2351.6,2351.5,0.42513]
[1726600967365,1.02003,2351.6,2351.5,0.42513]
[1726600968166,1.62743,2351.6,2351.5,0.42513]
[1726600969153,2.72749923,2351.6,2351.5,0.42513]
[1726600969359,0.42517,2351.5,2351.4,0.42515]
[1726600969558,2.18143923,2351.5,2351.4,0.42515]
[1726600969762,6.45211923,2351.5,2351.4,0.42517]
[1726600970070,5.38923923,2351.5,2351.4,0.42517]
[1726600971165,5.93986419,2351.5,2351.4,0.42517]
[1726600971564,1.75561258,2351.5,2351.4,0.42517]
[1726600971761,2.18076258,2351.5,2351.4,0.42517]
[1726600972066,4.28915,2351.5,2351.4,0.42517]
[1726600972370,2.18109157,2351.5,2351.4,0.42517]
[1726600972562,6.43389157,2351.5,2351.4,0.42517]
[1726600972771,0.42518,2351.4,2351.3,0.42517]
[1726600972965,1.52455129,2351.4,2351.3,0.42517]
[1726600973166,0.4252,2351.3,2351.2,0.4252]
[1726600973474,1.52488397,2351.3,2351.2,0.4252]
[1726600973670,1.09968397,2351.3,2351.2,0.4252]
[1726600974171,1.65069419,2351.3,2351.2,0.4252]
[1726600975467,2.07588419,2351.3,2351.2,0.4252]
[1726600975765,1.65069419,2351.3,2351.2,0.4252]
[1726600976573,2.07588419,2351.3,2351.2,0.4252]
[1726600979078,2.62978997,2351.3,2351.2,0.4252]
[1726600979669,0.42518,2351.4,2351.3,0.42519]
[1726600980069,2.62977997,2351.4,2351.3,0.42519]
[1726600980268,2.20459997,2351.4,2351.2,0.5937]
[1726600980474,2.62977997,2351.4,2351.3,0.42519]
[1726600980972,0.42519,2351.3,2351.2,1.01889]
[1726600981173,0.42522,2351.1,2351.0,0.42524]
[1726600981381,1.65314783,2351.1,2351.0,0.98380081]
[1726600981676,3.28381937,2351.2,2351.0,0.98380081]
[1726600981677,3.28381937,2351.2,2351.1,0.42522]
[1726600981875,2.85859937,2351.2,2351.1,0.42522]
[1726600982074,3.41420114,2351.2,2351.1,0.42522]
[1726600982373,0.6544,2351.2,2351.1,0.42522]